[Event "Titled Tuesday Blitz December 06 Early 2022"]
[White "Corrales Jimenez, Fidel"]
[Black "Tasev, Dejan"]
[WhiteFideId "3506690"]
[BlackFideId "936618"]
[WhiteElo "2541"]
[BlackElo "2253"]
[Result "1-0"]
[Round "06"]
[TimeControl "180+1"]
[Date "2022.12.06"]
[WhiteClock "0:00:14"]
[BlackClock "0:00:04"]

1. e4 {[%clk 0:03:00]}  c6 {[%clk 0:02:59]} 2. d4 {[%clk 0:03:00]}  d5 {[%clk 0:02:59]} 3. e5 {[%clk 0:03:01]}  Bf5 {[%clk 0:02:59]} 4. h4 {[%clk 0:03:01]}  h6 {[%clk 0:02:58]} 5. g4 {[%clk 0:02:59]}  Be4 {[%clk 0:02:59]} 6. f3 {[%clk 0:02:59]}  Bg6 {[%clk 0:02:59]} 7. e6 {[%clk 0:02:59]}  Qd6 {[%clk 0:02:59]} 8. exf7+ {[%clk 0:02:56]}  Kxf7 {[%clk 0:02:56]} 9. Ne2 {[%clk 0:02:55]}  Nd7 {[%clk 0:02:54]} 10. h5 {[%clk 0:02:55]}  Bh7 {[%clk 0:02:54]} 11. Bf4 {[%clk 0:02:52]}  e5 {[%clk 0:02:54]} 12. dxe5 {[%clk 0:02:51]}  Nxe5 {[%clk 0:02:54]} 13. Bg2 {[%clk 0:02:42]}  Re8 {[%clk 0:02:51]} 14. O-O {[%clk 0:02:42]}  Nf6 {[%clk 0:02:51]} 15. Nbc3 {[%clk 0:02:41]}  Qc7 {[%clk 0:02:48]} 16. Kh1 {[%clk 0:02:38]}  Bd6 {[%clk 0:02:48]} 17. b3 {[%clk 0:02:14]}  Rhf8 {[%clk 0:02:44]} 18. Bd2 {[%clk 0:02:06]}  Kg8 {[%clk 0:02:42]} 19. Nd4 {[%clk 0:02:06]}  a6 {[%clk 0:02:34]} 20. Nde2 {[%clk 0:01:45]}  c5 {[%clk 0:02:16]} 21. Nf4 {[%clk 0:01:35]}  d4 {[%clk 0:02:08]} 22. Nce2 {[%clk 0:01:35]}  Nexg4 {[%clk 0:01:16]} 23. fxg4 {[%clk 0:01:30]}  Nxg4 {[%clk 0:01:16]} 24. Nxd4 {[%clk 0:00:54]}  cxd4 {[%clk 0:00:42]} 25. Qxg4 {[%clk 0:00:54]}  Qxc2 {[%clk 0:00:33]} 26. Ne6 {[%clk 0:00:47]}  Rxf1+ {[%clk 0:00:15]} 27. Rxf1 {[%clk 0:00:46]}  Be5 {[%clk 0:00:14]} 28. Bxh6 {[%clk 0:00:38]}  Qc3 {[%clk 0:00:04]} 29. Bxg7 {[%clk 0:00:26]}  Qg3 {[%clk 0:00:04]} 30. Qxg3 {[%clk 0:00:17]}  Bxg3 {[%clk 0:00:05]} 31. h6 {[%clk 0:00:16]}  Rxe6 {[%clk 0:00:04]} 32. Rf8# {[%clk 0:00:14]} 1-0


[Site "https://www.chess.com"]

[Event "Titled Tuesday Blitz December 06 Early 2022"]
[White "Crevatin, Leo"]
[Black "Ibarra Jerez, Jose Carlos"]
[WhiteFideId "1726307"]
[BlackFideId "2226332"]
[WhiteElo "2190"]
[BlackElo "2638"]
[Result "0-1"]
[Round "06"]
[TimeControl "180+1"]
[Date "2022.12.07"]
[WhiteClock "0:00:20"]
[BlackClock "0:00:33"]

1. d4 {[%clk 0:03:00]}  Nf6 {[%clk 0:02:59]} 2. Bf4 {[%clk 0:03:01]}  g6 {[%clk 0:02:58]} 3. e3 {[%clk 0:03:01]}  Bg7 {[%clk 0:02:58]} 4. Nf3 {[%clk 0:03:01]}  O-O {[%clk 0:02:59]} 5. Be2 {[%clk 0:03:00]}  d6 {[%clk 0:02:59]} 6. h3 {[%clk 0:03:01]}  c5 {[%clk 0:02:59]} 7. c3 {[%clk 0:02:55]}  Be6 {[%clk 0:02:59]} 8. O-O {[%clk 0:02:55]}  Qb6 {[%clk 0:02:59]} 9. Qc1 {[%clk 0:02:51]}  Nc6 {[%clk 0:02:59]} 10. Nbd2 {[%clk 0:02:51]}  Rac8 {[%clk 0:02:59]} 11. Bd3 {[%clk 0:02:28]}  cxd4 {[%clk 0:02:51]} 12. exd4 {[%clk 0:02:28]}  Nd5 {[%clk 0:02:51]} 13. Nc4 {[%clk 0:02:16]}  Qd8 {[%clk 0:02:49]} 14. Bg3 {[%clk 0:01:57]}  b5 {[%clk 0:02:47]} 15. Ncd2 {[%clk 0:01:56]}  b4 {[%clk 0:02:39]} 16. Nc4 {[%clk 0:01:44]}  bxc3 {[%clk 0:02:38]} 17. bxc3 {[%clk 0:01:44]}  Na5 {[%clk 0:02:30]} 18. Nfd2 {[%clk 0:01:34]}  Nxc4 {[%clk 0:02:20]} 19. Nxc4 {[%clk 0:01:30]}  Nxc3 {[%clk 0:02:12]} 20. Qxc3 {[%clk 0:01:26]}  Bxc4 {[%clk 0:02:02]} 21. Bxc4 {[%clk 0:01:11]}  d5 {[%clk 0:02:02]} 22. Qe3 {[%clk 0:01:09]}  Rxc4 {[%clk 0:01:50]} 23. Be5 {[%clk 0:01:09]}  e6 {[%clk 0:01:40]} 24. Rfb1 {[%clk 0:01:01]}  Bxe5 {[%clk 0:01:33]} 25. dxe5 {[%clk 0:01:00]}  Qc7 {[%clk 0:01:31]} 26. Qg5 {[%clk 0:00:45]}  Rc8 {[%clk 0:01:19]} 27. h4 {[%clk 0:00:43]}  Re4 {[%clk 0:01:14]} 28. Re1 {[%clk 0:00:39]}  Rxe1+ {[%clk 0:01:03]} 29. Rxe1 {[%clk 0:00:40]}  Qc3 {[%clk 0:01:02]} 30. Re3 {[%clk 0:00:35]}  Qc1+ {[%clk 0:01:02]} 31. Kh2 {[%clk 0:00:33]}  d4 {[%clk 0:01:01]} 32. Rd3 {[%clk 0:00:19]}  Qxg5 {[%clk 0:01:01]} 33. hxg5 {[%clk 0:00:20]}  Rc4 {[%clk 0:00:49]} 34. Kg3 {[%clk 0:00:20]}  Rc3 {[%clk 0:00:33]} 0-1


[Site "https://www.chess.com"]

[Event "Titled Tuesday Blitz December 06 Early 2022"]
[White "Csonka, Balazs"]
[Black "Salman, Pavel"]
[WhiteFideId "742910"]
[BlackFideId "24153753"]
[WhiteElo "2404"]
[BlackElo "2187"]
[Result "0-1"]
[Round "06"]
[TimeControl "180+1"]
[Date "2022.12.07"]
[WhiteClock "0:00:02"]
[BlackClock "0:00:17"]

1. c4 {[%clk 0:03:00]}  Nf6 {[%clk 0:02:57]} 2. Nc3 {[%clk 0:02:57]}  c5 {[%clk 0:02:57]} 3. Nf3 {[%clk 0:02:57]}  e6 {[%clk 0:02:56]} 4. e3 {[%clk 0:02:55]}  b6 {[%clk 0:02:56]} 5. d4 {[%clk 0:02:52]}  cxd4 {[%clk 0:02:57]} 6. exd4 {[%clk 0:02:53]}  Bb7 {[%clk 0:02:58]} 7. Bd3 {[%clk 0:02:53]}  d5 {[%clk 0:02:57]} 8. cxd5 {[%clk 0:02:51]}  Nxd5 {[%clk 0:02:57]} 9. O-O {[%clk 0:02:49]}  Be7 {[%clk 0:02:55]} 10. Ne5 {[%clk 0:02:49]}  Nxc3 {[%clk 0:02:43]} 11. bxc3 {[%clk 0:02:48]}  O-O {[%clk 0:02:44]} 12. Qg4 {[%clk 0:01:39]}  Nd7 {[%clk 0:02:41]} 13. Bh6 {[%clk 0:01:27]}  Bf6 {[%clk 0:02:40]} 14. Rae1 {[%clk 0:01:24]}  Kh8 {[%clk 0:02:05]} 15. Qh3 {[%clk 0:01:04]}  g6 {[%clk 0:00:57]} 16. Bxf8 {[%clk 0:00:34]}  Bxe5 {[%clk 0:00:57]} 17. Bh6 {[%clk 0:00:31]}  Bg7 {[%clk 0:00:54]} 18. Be4 {[%clk 0:00:29]}  Qc7 {[%clk 0:00:48]} 19. Qf3 {[%clk 0:00:18]}  Bxe4 {[%clk 0:00:45]} 20. Bxg7+ {[%clk 0:00:15]}  Kxg7 {[%clk 0:00:46]} 21. Qxe4 {[%clk 0:00:14]}  Rc8 {[%clk 0:00:44]} 22. Rc1 {[%clk 0:00:14]}  Nf6 {[%clk 0:00:44]} 23. Qf3 {[%clk 0:00:13]}  Qc4 {[%clk 0:00:42]} 24. Rc2 {[%clk 0:00:13]}  Nd5 {[%clk 0:00:41]} 25. Rfc1 {[%clk 0:00:12]}  b5 {[%clk 0:00:40]} 26. g3 {[%clk 0:00:12]}  a5 {[%clk 0:00:39]} 27. Kg2 {[%clk 0:00:11]}  h5 {[%clk 0:00:39]} 28. h4 {[%clk 0:00:11]}  a4 {[%clk 0:00:38]} 29. Qe2 {[%clk 0:00:09]}  Qxe2 {[%clk 0:00:34]} 30. Rxe2 {[%clk 0:00:10]}  Rxc3 {[%clk 0:00:35]} 31. Rxc3 {[%clk 0:00:04]}  Nxc3 {[%clk 0:00:36]} 32. Rc2 {[%clk 0:00:04]}  b4 {[%clk 0:00:33]} 33. Rb2 {[%clk 0:00:01]}  b3 {[%clk 0:00:22]} 34. axb3 {[%clk 0:00:02]}  a3 {[%clk 0:00:22]} 35. Rc2 {[%clk 0:00:01]}  a2 {[%clk 0:00:23]} 36. Rxc3 {[%clk 0:00:01]}  a1=Q {[%clk 0:00:23]} 37. Rd3 {[%clk 0:00:02]}  Qb1 {[%clk 0:00:23]} 38. Rd2 {[%clk 0:00:02]}  Qxb3 {[%clk 0:00:23]} 39. Re2 {[%clk 0:00:02]}  Qd5+ {[%clk 0:00:23]} 40. Kg1 {[%clk 0:00:02]}  Qxd4 {[%clk 0:00:24]} 41. Kg2 {[%clk 0:00:03]}  Qd5+ {[%clk 0:00:24]} 42. Kg1 {[%clk 0:00:03]}  e5 {[%clk 0:00:25]} 43. Re3 {[%clk 0:00:02]}  e4 {[%clk 0:00:25]} 44. Re1 {[%clk 0:00:02]}  f5 {[%clk 0:00:25]} 45. Re3 {[%clk 0:00:03]}  Qd1+ {[%clk 0:00:25]} 46. Kg2 {[%clk 0:00:03]}  Kf6 {[%clk 0:00:25]} 47. Ra3 {[%clk 0:00:03]}  Ke5 {[%clk 0:00:25]} 48. Ra5+ {[%clk 0:00:03]}  Kd4 {[%clk 0:00:25]} 49. Ra6 {[%clk 0:00:03]}  Qf3+ {[%clk 0:00:24]} 50. Kg1 {[%clk 0:00:03]}  e3 {[%clk 0:00:22]} 51. Ra4+ {[%clk 0:00:03]}  Kc5 {[%clk 0:00:22]} 52. Rf4 {[%clk 0:00:02]}  Qd1+ {[%clk 0:00:17]} 53. Kg2 {[%clk 0:00:02]}  e2 {[%clk 0:00:18]} 54. Rf3 {[%clk 0:00:02]}  e1=Q {[%clk 0:00:17]} 0-1


[Site "https://www.chess.com"]

[Event "Titled Tuesday Blitz December 06 Early 2022"]
[White "Darini, Pouria"]
[Black "Grandelius, Nils"]
[WhiteFideId "12502200"]
[BlackFideId "1710400"]
[WhiteElo "2482"]
[BlackElo "2617"]
[Result "1-0"]
[Round "06"]
[TimeControl "180+1"]
[Date "2022.12.06"]
[WhiteClock "0:00:32"]
[BlackClock "0:01:01"]

1. d4 {[%clk 0:02:59]}  f5 {[%clk 0:02:59]} 2. Bg5 {[%clk 0:02:57]}  g6 {[%clk 0:02:58]} 3. e3 {[%clk 0:02:55]}  Bg7 {[%clk 0:02:58]} 4. Nc3 {[%clk 0:02:49]}  Nf6 {[%clk 0:02:53]} 5. Bc4 {[%clk 0:02:41]}  d5 {[%clk 0:02:41]} 6. Bxf6 {[%clk 0:02:40]}  Bxf6 {[%clk 0:02:34]} 7. Nxd5 {[%clk 0:02:38]}  Bg7 {[%clk 0:02:35]} 8. Nf3 {[%clk 0:02:36]}  Nc6 {[%clk 0:02:18]} 9. Nf4 {[%clk 0:02:25]}  Qd6 {[%clk 0:02:14]} 10. c3 {[%clk 0:02:20]}  Bd7 {[%clk 0:02:06]} 11. Ng5 {[%clk 0:02:16]}  e5 {[%clk 0:01:49]} 12. Nf7 {[%clk 0:01:53]}  Qf8 {[%clk 0:01:39]} 13. Ne6 {[%clk 0:01:34]}  Bxe6 {[%clk 0:01:33]} 14. Bxe6 {[%clk 0:01:34]}  Qe7 {[%clk 0:01:22]} 15. Nxh8 {[%clk 0:01:20]}  exd4 {[%clk 0:01:23]} 16. Bd5 {[%clk 0:00:38]}  O-O-O {[%clk 0:01:07]} 17. Bxc6 {[%clk 0:00:37]}  dxe3 {[%clk 0:01:06]} 18. Bxb7+ {[%clk 0:00:34]}  Kb8 {[%clk 0:01:06]} 19. Qb3 {[%clk 0:00:31]}  exf2+ {[%clk 0:01:01]} 20. Kf1 {[%clk 0:00:32]} 1-0


[Site "https://www.chess.com"]

[Event "Titled Tuesday Blitz December 06 Early 2022"]
[White "Donskov, Anatoly"]
[Black "Moksh Amit Doshi"]
[WhiteFideId "24143413"]
[BlackFideId "25064967"]
[WhiteElo "2219"]
[BlackElo "2297"]
[Result "0-1"]
[Round "06"]
[TimeControl "180+1"]
[Date "2022.12.07"]
[WhiteClock "0:00:03"]
[BlackClock "0:00:14"]

1. e4 {[%clk 0:03:00]}  c5 {[%clk 0:02:55]} 2. Nf3 {[%clk 0:03:00]}  d6 {[%clk 0:02:55]} 3. d4 {[%clk 0:03:00]}  cxd4 {[%clk 0:02:55]} 4. Nxd4 {[%clk 0:03:01]}  Nf6 {[%clk 0:02:56]} 5. Nc3 {[%clk 0:03:02]}  a6 {[%clk 0:02:56]} 6. f4 {[%clk 0:03:02]}  e5 {[%clk 0:02:56]} 7. Nf3 {[%clk 0:03:03]}  Nbd7 {[%clk 0:02:54]} 8. a4 {[%clk 0:03:03]}  Be7 {[%clk 0:02:54]} 9. Bd3 {[%clk 0:03:03]}  O-O {[%clk 0:02:54]} 10. O-O {[%clk 0:03:04]}  Qc7 {[%clk 0:02:54]} 11. Kh1 {[%clk 0:03:04]}  Nc5 {[%clk 0:02:50]} 12. Qe2 {[%clk 0:03:04]}  Re8 {[%clk 0:02:42]} 13. fxe5 {[%clk 0:03:01]}  dxe5 {[%clk 0:02:42]} 14. Bg5 {[%clk 0:03:01]}  Be6 {[%clk 0:02:11]} 15. Nh4 {[%clk 0:02:59]}  Rad8 {[%clk 0:02:05]} 16. Nf5 {[%clk 0:02:00]}  Bxf5 {[%clk 0:01:51]} 17. Rxf5 {[%clk 0:02:01]}  Nxd3 {[%clk 0:01:48]} 18. cxd3 {[%clk 0:02:02]}  Qd6 {[%clk 0:01:10]} 19. Bxf6 {[%clk 0:01:59]}  Bxf6 {[%clk 0:01:10]} 20. Nd5 {[%clk 0:01:59]}  Be7 {[%clk 0:01:10]} 21. Raf1 {[%clk 0:01:54]}  f6 {[%clk 0:01:10]} 22. Qg4 {[%clk 0:01:40]}  Qe6 {[%clk 0:00:57]} 23. Nc7 {[%clk 0:01:32]}  Qb3 {[%clk 0:00:56]} 24. Nxe8 {[%clk 0:01:32]}  Rxe8 {[%clk 0:00:56]} 25. R5f3 {[%clk 0:01:28]}  Qxa4 {[%clk 0:00:53]} 26. Qe6+ {[%clk 0:01:25]}  Kh8 {[%clk 0:00:52]} 27. h3 {[%clk 0:01:11]}  Bc5 {[%clk 0:00:51]} 28. Qf7 {[%clk 0:01:09]}  Qb5 {[%clk 0:00:48]} 29. Rg3 {[%clk 0:01:04]}  Rg8 {[%clk 0:00:48]} 30. Rxf6 {[%clk 0:01:02]}  Qxb2 {[%clk 0:00:46]} 31. Rf1 {[%clk 0:00:39]}  a5 {[%clk 0:00:37]} 32. Qc7 {[%clk 0:00:38]}  b6 {[%clk 0:00:28]} 33. Rg5 {[%clk 0:00:20]}  a4 {[%clk 0:00:19]} 34. Rxe5 {[%clk 0:00:07]}  a3 {[%clk 0:00:16]} 35. d4 {[%clk 0:00:06]}  Qxd4 {[%clk 0:00:15]} 36. Rd5 {[%clk 0:00:06]}  Qxe4 {[%clk 0:00:15]} 37. Rd7 {[%clk 0:00:06]}  Qe2 {[%clk 0:00:14]} 38. Rdf7 {[%clk 0:00:05]}  a2 {[%clk 0:00:14]} 39. Qa7 {[%clk 0:00:05]}  h6 {[%clk 0:00:13]} 40. Qa4 {[%clk 0:00:04]}  Qb2 {[%clk 0:00:12]} 41. Qe4 {[%clk 0:00:02]}  Bd4 {[%clk 0:00:12]} 42. Rxg7 {[%clk 0:00:01]}  Bxg7 {[%clk 0:00:11]} 43. Qg6 {[%clk 0:00:02]}  a1=Q {[%clk 0:00:12]} 44. Rxa1 {[%clk 0:00:01]}  Qxa1+ {[%clk 0:00:13]} 45. Kh2 {[%clk 0:00:02]}  Qe5+ {[%clk 0:00:13]} 46. g3 {[%clk 0:00:03]}  Rd8 {[%clk 0:00:14]} 0-1


[Site "https://www.chess.com"]

[Event "Titled Tuesday Blitz December 06 Early 2022"]
[White "Farmani Anosheh, Armin"]
[Black "Gong, Qianyun"]
[WhiteFideId "24613240"]
[BlackFideId "8602425"]
[WhiteElo "2289"]
[BlackElo "2199"]
[Result "0-1"]
[Round "06"]
[TimeControl "180+1"]
[Date "2022.12.07"]
[WhiteClock "0:00:05"]
[BlackClock "0:00:41"]

1. e4 {[%clk 0:03:00]}  e6 {[%clk 0:02:59]} 2. d4 {[%clk 0:03:00]}  d5 {[%clk 0:02:59]} 3. Nd2 {[%clk 0:03:01]}  Be7 {[%clk 0:02:59]} 4. Ngf3 {[%clk 0:02:59]}  Nf6 {[%clk 0:02:59]} 5. e5 {[%clk 0:03:00]}  Nfd7 {[%clk 0:02:59]} 6. Bd3 {[%clk 0:03:00]}  c5 {[%clk 0:03:00]} 7. c3 {[%clk 0:03:00]}  Nc6 {[%clk 0:03:00]} 8. O-O {[%clk 0:02:58]}  O-O {[%clk 0:03:00]} 9. Re1 {[%clk 0:02:57]}  f6 {[%clk 0:03:00]} 10. exf6 {[%clk 0:02:56]}  Nxf6 {[%clk 0:03:01]} 11. Ne5 {[%clk 0:02:51]}  cxd4 {[%clk 0:02:57]} 12. Nxc6 {[%clk 0:02:51]}  bxc6 {[%clk 0:02:58]} 13. cxd4 {[%clk 0:02:52]}  c5 {[%clk 0:02:50]} 14. Nf3 {[%clk 0:02:50]}  c4 {[%clk 0:02:44]} 15. Bc2 {[%clk 0:02:50]}  Bd6 {[%clk 0:02:40]} 16. Bg5 {[%clk 0:02:35]}  Qc7 {[%clk 0:02:36]} 17. Bh4 {[%clk 0:02:36]}  Bd7 {[%clk 0:02:16]} 18. Bg3 {[%clk 0:02:36]}  Bxg3 {[%clk 0:02:10]} 19. hxg3 {[%clk 0:02:37]}  Rae8 {[%clk 0:01:46]} 20. Ne5 {[%clk 0:02:35]}  Bb5 {[%clk 0:01:46]} 21. Qd2 {[%clk 0:02:03]}  Nd7 {[%clk 0:01:34]} 22. Nf3 {[%clk 0:01:49]}  Rf6 {[%clk 0:01:22]} 23. Ne5 {[%clk 0:01:39]}  Nxe5 {[%clk 0:01:11]} 24. Rxe5 {[%clk 0:01:40]}  Ref8 {[%clk 0:01:11]} 25. f4 {[%clk 0:01:40]}  Bd7 {[%clk 0:01:11]} 26. Qc3 {[%clk 0:01:22]}  Qb6 {[%clk 0:01:07]} 27. b4 {[%clk 0:01:05]}  cxb3 {[%clk 0:01:06]} 28. axb3 {[%clk 0:00:49]}  Rc8 {[%clk 0:01:05]} 29. Qd3 {[%clk 0:00:50]}  Rxc2 {[%clk 0:01:04]} 30. Rh5 {[%clk 0:00:14]}  g6 {[%clk 0:00:58]} 31. Qxc2 {[%clk 0:00:14]}  Qxd4+ {[%clk 0:00:58]} 32. Kh2 {[%clk 0:00:13]}  Qxa1 {[%clk 0:00:49]} 33. Re5 {[%clk 0:00:08]}  Rf5 {[%clk 0:00:48]} 34. Qc7 {[%clk 0:00:07]}  Be8 {[%clk 0:00:42]} 35. Rxe6 {[%clk 0:00:05]}  Rh5# {[%clk 0:00:41]} 0-1


[Site "https://www.chess.com"]

[Event "Titled Tuesday Blitz December 06 Early 2022"]
[White "Galchenko, Matvey"]
[Black "Firouzja, Alireza"]
[WhiteFideId "24175480"]
[BlackFideId "12573981"]
[WhiteElo "2404"]
[BlackElo "2904"]
[Result "0-1"]
[Round "06"]
[TimeControl "180+1"]
[Date "2022.12.06"]
[WhiteClock "0:00:02"]
[BlackClock "0:00:16"]

1. e4 {[%clk 0:03:00]}  e6 {[%clk 0:02:57]} 2. d4 {[%clk 0:02:58]}  d5 {[%clk 0:02:58]} 3. exd5 {[%clk 0:02:58]}  exd5 {[%clk 0:02:58]} 4. Nf3 {[%clk 0:02:59]}  Bd6 {[%clk 0:02:56]} 5. c4 {[%clk 0:02:59]}  Nf6 {[%clk 0:02:54]} 6. Nc3 {[%clk 0:02:57]}  O-O {[%clk 0:02:52]} 7. Be2 {[%clk 0:02:57]}  dxc4 {[%clk 0:02:52]} 8. Bxc4 {[%clk 0:02:57]}  Re8+ {[%clk 0:02:52]} 9. Be3 {[%clk 0:02:58]}  c6 {[%clk 0:02:46]} 10. O-O {[%clk 0:02:57]}  Be6 {[%clk 0:02:46]} 11. Bd3 {[%clk 0:02:56]}  Nbd7 {[%clk 0:02:46]} 12. h3 {[%clk 0:02:53]}  h6 {[%clk 0:02:43]} 13. Re1 {[%clk 0:02:52]}  Nb6 {[%clk 0:02:38]} 14. Ne5 {[%clk 0:02:51]}  Nbd5 {[%clk 0:02:38]} 15. Qf3 {[%clk 0:02:39]}  Nxc3 {[%clk 0:02:30]} 16. bxc3 {[%clk 0:02:38]}  Bd5 {[%clk 0:02:16]} 17. Qf5 {[%clk 0:02:26]}  Qc8 {[%clk 0:02:16]} 18. Qxc8 {[%clk 0:02:07]}  Raxc8 {[%clk 0:02:17]} 19. c4 {[%clk 0:02:08]}  Be6 {[%clk 0:02:15]} 20. f4 {[%clk 0:02:08]}  b5 {[%clk 0:01:50]} 21. d5 {[%clk 0:01:36]}  cxd5 {[%clk 0:01:41]} 22. cxb5 {[%clk 0:01:36]}  d4 {[%clk 0:01:30]} 23. Bxd4 {[%clk 0:01:33]}  Nh5 {[%clk 0:01:22]} 24. f5 {[%clk 0:01:32]}  Bd5 {[%clk 0:01:14]} 25. Nc6 {[%clk 0:01:02]}  Nf4 {[%clk 0:01:11]} 26. Bf1 {[%clk 0:01:00]}  Rxe1 {[%clk 0:01:05]} 27. Rxe1 {[%clk 0:01:00]}  Bxc6 {[%clk 0:01:05]} 28. bxc6 {[%clk 0:01:00]}  Rxc6 {[%clk 0:01:06]} 29. Bxa7 {[%clk 0:00:56]}  Rc2 {[%clk 0:01:05]} 30. a4 {[%clk 0:00:53]}  Ra2 {[%clk 0:01:05]} 31. Re8+ {[%clk 0:00:52]}  Kh7 {[%clk 0:01:05]} 32. Re4 {[%clk 0:00:53]}  Nh5 {[%clk 0:01:00]} 33. Bd3 {[%clk 0:00:50]}  Bg3 {[%clk 0:00:55]} 34. Bf1 {[%clk 0:00:17]}  Ra1 {[%clk 0:00:47]} 35. Bb6 {[%clk 0:00:16]}  Nf6 {[%clk 0:00:46]} 36. Re3 {[%clk 0:00:14]}  Bd6 {[%clk 0:00:42]} 37. Rd3 {[%clk 0:00:12]}  Bb4 {[%clk 0:00:38]} 38. Bd4 {[%clk 0:00:10]}  Rxa4 {[%clk 0:00:39]} 39. Bxf6 {[%clk 0:00:10]}  gxf6 {[%clk 0:00:39]} 40. Rd7 {[%clk 0:00:11]}  Kg7 {[%clk 0:00:39]} 41. Bb5 {[%clk 0:00:10]}  Bc5+ {[%clk 0:00:38]} 42. Kh2 {[%clk 0:00:10]}  Rf4 {[%clk 0:00:38]} 43. Bd3 {[%clk 0:00:08]}  Bd4 {[%clk 0:00:37]} 44. g3 {[%clk 0:00:03]}  Rf2+ {[%clk 0:00:36]} 45. Kh1 {[%clk 0:00:04]}  Be5 {[%clk 0:00:31]} 46. Bc4 {[%clk 0:00:03]}  h5 {[%clk 0:00:30]} 47. Rxf7+ {[%clk 0:00:04]}  Kh6 {[%clk 0:00:30]} 48. h4 {[%clk 0:00:04]}  Rf3 {[%clk 0:00:26]} 49. Rf8 {[%clk 0:00:04]}  Kg7 {[%clk 0:00:23]} 50. Rg8+ {[%clk 0:00:04]}  Kh7 {[%clk 0:00:23]} 51. Rg6 {[%clk 0:00:05]}  Rxf5 {[%clk 0:00:23]} 52. Rg8 {[%clk 0:00:02]}  Rf2 {[%clk 0:00:17]} 53. Bd5 {[%clk 0:00:02]}  Rd2 {[%clk 0:00:16]} 54. Be4+ {[%clk 0:00:02]}  Kxg8 {[%clk 0:00:16]} 0-1


[Site "https://www.chess.com"]

[Event "Titled Tuesday Blitz December 06 Early 2022"]
[White "Gheorghiu, Calin"]
[Black "Hoffmann, Asa"]
[WhiteFideId "1200305"]
[BlackFideId "2001470"]
[WhiteElo "2224"]
[BlackElo "2117"]
[Result "1-0"]
[Round "06"]
[TimeControl "180+1"]
[Date "2022.12.07"]
[WhiteClock "0:01:07"]
[BlackClock "0:00:37"]

1. c4 {[%clk 0:03:00]}  Nf6 {[%clk 0:02:57]} 2. Nc3 {[%clk 0:03:00]}  d6 {[%clk 0:02:54]} 3. d4 {[%clk 0:02:53]}  Bf5 {[%clk 0:02:51]} 4. g3 {[%clk 0:02:51]}  c6 {[%clk 0:02:51]} 5. Bg2 {[%clk 0:02:52]}  Nbd7 {[%clk 0:02:51]} 6. e4 {[%clk 0:02:51]}  Bg6 {[%clk 0:02:49]} 7. f4 {[%clk 0:02:51]}  e6 {[%clk 0:02:48]} 8. g4 {[%clk 0:02:38]}  h5 {[%clk 0:02:18]} 9. g5 {[%clk 0:02:31]}  Ng8 {[%clk 0:02:12]} 10. Nf3 {[%clk 0:02:31]}  h4 {[%clk 0:02:01]} 11. O-O {[%clk 0:02:23]}  Ne7 {[%clk 0:01:56]} 12. Qe1 {[%clk 0:02:15]}  h3 {[%clk 0:01:54]} 13. Bh1 {[%clk 0:02:13]}  Qb6 {[%clk 0:01:49]} 14. Rb1 {[%clk 0:02:08]}  O-O-O {[%clk 0:01:46]} 15. Be3 {[%clk 0:02:07]}  d5 {[%clk 0:01:44]} 16. cxd5 {[%clk 0:02:04]}  cxd5 {[%clk 0:01:40]} 17. Ne5 {[%clk 0:01:57]}  Nxe5 {[%clk 0:01:38]} 18. dxe5 {[%clk 0:01:55]}  d4 {[%clk 0:01:36]} 19. Bf2 {[%clk 0:01:55]}  Nc6 {[%clk 0:01:27]} 20. f5 {[%clk 0:01:46]}  exf5 {[%clk 0:01:20]} 21. Nd5 {[%clk 0:01:45]}  Rxd5 {[%clk 0:01:14]} 22. exd5 {[%clk 0:01:43]}  Nb4 {[%clk 0:01:11]} 23. d6 {[%clk 0:01:34]}  Kb8 {[%clk 0:01:02]} 24. Qd2 {[%clk 0:01:27]}  Nc6 {[%clk 0:00:58]} 25. Rbc1 {[%clk 0:01:19]}  Rh5 {[%clk 0:00:56]} 26. Bf3 {[%clk 0:01:14]}  Nxe5 {[%clk 0:00:52]} 27. Bxd4 {[%clk 0:01:13]}  Nxf3+ {[%clk 0:00:49]} 28. Rxf3 {[%clk 0:01:13]}  Rxg5+ {[%clk 0:00:46]} 29. Kh1 {[%clk 0:01:08]}  Qxd6 {[%clk 0:00:37]} 30. Be5 {[%clk 0:01:07]} 1-0


[Site "https://www.chess.com"]